Cogmind - Beta 11.1 @@@ ROGUE MODE // 2022.04.29 @ 00:25:13 Player: Olga Result: Escaped! Performance ------------- Evolutions (9) 4500 Regions Visited (23) 4600 Robots Destroyed (18) 90 Value Destroyed (607) 607 Prototype IDs (49) 980 Alien Tech Used (0) 0 Bonus (7987) 7987 TOTAL SCORE: 18764 Bonus ------- Follower Combat Kills 290 Aligned with FarCom 300 Met Data Miner 300 Met Warlord at Base 500 MAIN.C Attacked Warlord 500 Met Warlord at Research 2000 Win 3000 Win Speed 1097 Cogmind --------- Core Integrity 1408/1600 Matter 64/300 Energy 276/280 System Corruption 1% Temperature Cool (8) Movement Flying (29) Location To Epsilon Eridani Parts ------- > --- POWER (2) -------- Light Quantum Reactor Light Quantum Reactor > --- PROPULSION (9) --- Impulse Thruster Array Impulse Thruster Array Impulse Thruster Array Experimental Q-thruster > --- UTILITY (12) ----- Advanced Weight Redist. System Spectral Analyzer Advanced Signal Interpreter Advanced Terrain Scan Processor Improved Focal Shield Experimental Hacking Suite Improved System Shield Advanced System Shield > --- WEAPON (2) ------- (None) > --- INVENTORY (5) ---- Neutrino Core Peak State ------------ > --- POWER ------------ Vortex Chain Reactor > --- PROPULSION ------- Nuclear Pulse Array Cooled Impulse Thruster Impulse Thruster Array Impulse Thruster Array Impulse Thruster Array > --- UTILITY ---------- Advanced Weight Redist. System Spectral Analyzer Advanced Signal Interpreter Advanced Terrain Scan Processor Improved Focal Shield Improved Shock Absorption System Improved Hardlight Generator Advanced Force Field Advanced Hacking Suite Experimental Hacking Suite System Mapper Improved System Shield > --- WEAPON ----------- Hardcell Cannon > --- INVENTORY -------- Neutrino Core Light Quantum Reactor Light Quantum Reactor Experimental Q-thruster [Rating: 173] Favorites ----------- Power Vortex Chain Reactor Engine Light Ion Engine Power Core Neutrino Core Reactor Vortex Chain Reactor Propulsion Flight Unit Leg Aluminum Leg Wheel Compact Wheel Hover Unit Combat Gravmag System Flight Unit Flight Unit Utility Hacking Suite Device Advanced Weight Redist. System Storage Medium Storage Unit Processor Advanced Signal Interpreter Hackware Hacking Suite Protection Propulsion Shielding Weapon Chainsword Energy Gun EM Pulse Gun Energy Cannon Beam Cannon Ballistic Gun Light Assault Rifle Ballistic Cannon Assault Cannon Launcher Grenade Launcher Special Weapon Field Lobotomy Kit Slashing Weapon Chainsword Piercing Weapon Spear Build | -11 -10 -10 -9 -9 -9 -8 -8 -8 -7 -6 -6 -6 -6 -5 -5 -5 -5 -5 -4 -4 -3 -2 -1 ------- Run | Scr Mat Min Mat Min Exi Min Mat Sto Fac Fac Low Low Dat Pro Fac Upp Upp War Pro Fac Res Res Acc Slots Evolved 18 | . . . 2 . . . 2 . 2 2 . . . . 2 . . . . 2 2 2 2 Power 1 | . . . . . . . . . . . . . . . . . . . . . 1 . . Propulsion 7 | . . . 1 . . . 1 . 1 1 . . . . . . . . . . 1 2 . Utility 10 | . . . 1 . . . 1 . 1 1 . . . . 2 . . . . 2 . . 2 Weapon . | . . . . . . . . . . . . . . . . . . . . . . . . Parts Attached 132 | . 11 4 6 . . . 6 19 6 2 1 5 . . 17 1 . 5 6 6 15 8 14 Power 20 | . 2 1 . . . . 1 3 2 . . 1 . . 2 . . 1 1 1 3 . 2 Engine 8 | . 2 1 . . . . . 3 . . . 1 . . 1 . . . . . . . . Core 8 | . . . . . . . 1 . 2 . . . . . 1 . . 1 1 1 1 . . Reactor 4 | . . . . . . . . . . . . . . . . . . . . . 2 . 2 Propulsion 42 | . 3 2 2 . . . 1 9 1 . . 1 . . 4 . . . 2 1 8 1 7 Treads . | . . . . . . . . . . . . . . . . . . . . . . . . Leg . | . . . . . . . . . . . . . . . . . . . . . . . . Wheel 3 | . 3 . . . . . . . . . . . . . . . . . . . . . . Hover 5 | . . . . . . . . . . . . . . . . . . . . 1 4 . . Flight 34 | . . 2 2 . . . 1 9 1 . . 1 . . 4 . . . 2 . 4 1 7 Utility 42 | . 2 1 2 . . . 2 4 1 2 . . . . 8 . . 4 1 4 2 5 4 Device 21 | . 1 . 2 . . . . 2 . 1 . . . . 4 . . 1 1 2 1 4 2 Storage 4 | . 1 1 . . . . 1 . . . . . . . . . . 1 . . . . . Processor 8 | . . . . . . . 1 2 . . . . . . 2 . . 1 . 1 . . 1 Hackware 8 | . . . . . . . . . 1 . . . . . 2 . . 1 . 1 1 1 1 Protection 1 | . . . . . . . . . . 1 . . . . . . . . . . . . . Artifact . | . . . . . . . . . . . . . . . . . . . . . . . . Weapon 28 | . 4 . 2 . . . 2 3 2 . 1 3 . . 3 1 . . 2 . 2 2 1 Energy Gun 5 | . 1 . . . . . . 2 1 . . . . . . . . . . . . 1 . Energy Cannon 1 | . 1 . . . . . . . . . . . . . . . . . . . . . . Ballistic Gun 2 | . 2 . . . . . . . . . . . . . . . . . . . . . . Ballistic Cannon 4 | . . . . . . . . 1 1 . . . . . . . . . . . . 1 1 Launcher 3 | . . . 2 . . . 1 . . . . . . . . . . . . . . . . Special Weapon 4 | . . . . . . . . . . . . . . . 1 . . . 1 . 2 . . Impact Weapon . | . . . . . . . . . . . . . . . . . . . . . . . . Slashing Weapon 7 | . . . . . . . 1 . . . 1 3 . . . 1 . . 1 . . . . Piercing Weapon 2 | . . . . . . . . . . . . . . . 2 . . . . . . . . Special Melee Weapon . | . . . . . . . . . . . . . . . . . . . . . . . . Unidentified Prototypes 12 | . . . . . . . . 4 . . . . . . . . . 4 . . 2 1 1 Parts Lost 30 | . 3 . . . . . 5 4 . . . 2 . . . . . . 4 4 2 . 6 Power 4 | . 1 . . . . . 1 . . . . 1 . . . . . . . . . . 1 Propulsion 15 | . 1 . . . . . 1 3 . . . 1 . . . . . . 4 3 . . 2 Utility 7 | . . . . . . . 1 1 . . . . . . . . . . . . 2 . 3 Weapon 4 | . 1 . . . . . 2 . . . . . . . . . . . . 1 . . . Highest Loss Streak 6 | . 3 . . . . . 5 2 . . . 2 . . . . . . 3 4 1 . 6 To Critical Strikes . | . . . . . . . . . . . . . . . . . . . . . . . . Average Slot Usage (%) 82 | . 85 85 88 100 100 100 88 83 87 85 86 83 93 93 88 88 94 94 84 62 69 64 68 Engine 3 | . 11 14 11 11 11 11 8 8 . . . . 6 6 4 . . . . . . . . Core 1 | . . . . . . . . . 6 6 6 4 . . . 5 5 5 5 5 1 . . Wheel 1 | . 17 14 . . . . . . . . . . . . . . . . . . . . . Hover 1 | . . . . . . . . . . . . . . . . . . . . . 12 . . Flight 22 | . . 14 33 33 33 33 36 36 30 33 33 30 33 33 29 29 29 29 23 5 3 15 18 Device 9 | . 4 9 16 22 22 22 18 10 7 6 6 6 6 6 8 5 5 3 2 10 13 7 15 Storage 5 | . 14 14 11 11 11 11 9 9 7 6 6 6 6 6 5 5 5 6 8 1 . . . Processor 9 | . . . . . . . 2 12 15 13 13 13 13 13 11 11 11 11 11 11 9 8 11 Hackware 12 | . . . . . . . . . 7 6 6 6 6 6 12 17 17 18 23 24 23 26 15 Protection 1 | . . . . . . . . . . 5 6 6 6 6 5 5 5 3 . . . . . Launcher 2 | . . . 16 22 22 22 13 . . . . . . . . . . . . . . . . Slashing Weapon 2 | . . . . . . . . . . . 6 7 13 13 5 5 11 11 7 1 . . . Naked Turns . | . . . . . . . . . . . . . . . . . . . . . . . . Heaviest Build 75 | 14 50 50 15 15 15 15 20 23 26 24 21 23 22 22 35 31 31 32 35 18 38 63 75 Greatest Support 77 | 20 32 32 18 18 18 18 22 27 33 24 24 26 26 26 45 45 45 45 36 23 72 64 77 Greatest Overweight (x) 3 | . 3 1 . . . . . 1 . . . . . . . . . . 1 . . . . Average Overweight (x) . | . . . . . . . . . . . . . . . . . . . . . . . . Largest Inventory Capacity 20 | . 20 20 8 8 8 8 10 10 10 10 10 10 10 10 10 10 10 10 10 10 5 5 5 Average Capacity 8 | . 13 14 8 8 8 8 9 10 10 10 10 10 10 10 10 10 10 10 10 6 5 5 5 Most Carried 19 | . 13 19 8 8 8 8 7 9 10 10 10 10 9 10 10 10 10 10 10 10 5 5 5 Average Carried 7 | . 8 12 6 8 8 7 6 7 9 9 9 9 9 9 9 9 10 9 9 6 4 3 4 Final Capacity 20 | 8 20 8 8 8 8 8 10 10 10 10 10 10 10 10 10 10 10 10 10 5 5 5 5 Final Carried 13 | 6 13 8 8 8 8 8 7 8 10 10 10 9 9 10 10 10 10 10 10 5 3 5 1 Class Distribution -------------------- 39% | Sprinter 27% | Hacker-Sprinter 18% | Wizard-Scout 7% | Mutant 4% | Wizard-Sprinter 3% | Wizard-Mutant Dominant Class ---------------- Mutant | -10/Materials Mutant | -10/Mines Sprinter | -9/Materials Sprinter | -9/Mines Sprinter | -9/Exiles Sprinter | -8/Mines Sprinter | -8/Materials Sprinter | -8/Storage Sprinter | -7/Factory Sprinter | -6/Factory Sprinter | -6/Lower Caves Sprinter | -6/Lower Caves Sprinter | -6/Data Miner Sprinter | -5/Proximity Caves Hacker-Sprinter | -5/Factory Hacker-Sprinter | -5/Upper Caves Hacker-Sprinter | -5/Upper Caves Hacker-Sprinter | -5/Warlord Hacker-Sprinter | -4/Proximity Caves Wizard-Scout | -4/Factory Wizard-Scout | -3/Research Wizard-Mutant | -2/Research Wizard-Sprinter | -1/Access Resources | -11 -10 -10 -9 -9 -9 -8 -8 -8 -7 -6 -6 -6 -6 -5 -5 -5 -5 -5 -4 -4 -3 -2 -1 ----------- Run | Scr Mat Min Mat Min Exi Min Mat Sto Fac Fac Low Low Dat Pro Fac Upp Upp War Pro Fac Res Res Acc Matter Collected 1434 | 200 69 38 . . . 49 17 229 . . 86 36 . 226 46 93 . . 136 5 140 60 4 Remotely . | . . . . . . . . . . . . . . . . . . . . . . . . Salvage Created 697 | . 405 38 . . . . 7 171 . . . . . . 20 . . . 56 . . . . Parts 38 | . 12 6 . . . . . 11 . . . . . . 3 . . . 6 . . . . Haulers Intercepted 3 | . 1 . . . . . . 2 . . . . . . . . . . . . . . . Recyclers Shooed 3 | . 2 . . . . . 1 . . . . . . . . . . . . . . . . Parts Field Recycled . | . . . . . . . . . . . . . . . . . . . . . . . . Retrieved Matter . | . . . . . . . . . . . . . . . . . . . . . . . . Parts Self-Destructed 25 | . . . . . . . . . . . . . . 10 . . . 3 12 . . . . Prevented 13 | . . . . . . . . . . . . . . . . . . 12 1 . . . . Kills | -11 -10 -10 -9 -9 -9 -8 -8 -8 -7 -6 -6 -6 -6 -5 -5 -5 -5 -5 -4 -4 -3 -2 -1 ------- Run | Scr Mat Min Mat Min Exi Min Mat Sto Fac Fac Low Low Dat Pro Fac Upp Upp War Pro Fac Res Res Acc Combat Hostiles Destroyed 12 | . 4 3 . . . . 1 3 . . . . . . . . . . 1 . . . . Melee 1 | . . . . . . . . . . . . . . . . . . . 1 . . . . Guns 5 | . 2 . . . . . . 3 . . . . . . . . . . . . . . . Cannons 3 | . . 3 . . . . . . . . . . . . . . . . . . . . . AOE 3 | . 2 . . . . . 1 . . . . . . . . . . . . . . . . Classes Destroyed 7 | . 3 1 . . . . . 1 . . . . . . 1 . . . 1 . . . . Hauler 3 | . 1 . . . . . . 2 . . . . . . . . . . . . . . . Recycler 2 | . 2 . . . . . . . . . . . . . . . . . . . . . . Watcher 1 | . . . . . . . . . . . . . . . 1 . . . . . . . . Swarmer 5 | . . 3 . . . . . 2 . . . . . . . . . . . . . . . Grunt 5 | . 4 . . . . . 1 . . . . . . . . . . . . . . . . Sentry 1 | . . . . . . . . 1 . . . . . . . . . . . . . . . Programmer 1 | . . . . . . . . . . . . . . . . . . . 1 . . . . Best Kill Streak 5 | . 5 3 . . . . 1 3 . . . . . . 1 . . . 1 . . . . Combat Bots Only 4 | . 4 3 . . . . 1 3 . . . . . . . . . . 1 . . . . Max Kills in Single Turn 1 | . 1 1 . . . . 1 1 . . . . . . 1 . . . 1 . . . . Gunslinging . | . . . . . . . . . . . . . . . . . . . . . . . . Exploded 1 | . 1 . . . . . 1 . . . . . . . . . . . . . . . . Melee 1 | . . . . . . . . . . . . . . . . . . . 1 . . . . Uniques/NPCs Destroyed . | . . . . . . . . . . . . . . . . . . . . . . . . Combat | -11 -10 -10 -9 -9 -9 -8 -8 -8 -7 -6 -6 -6 -6 -5 -5 -5 -5 -5 -4 -4 -3 -2 -1 -------- Run | Scr Mat Min Mat Min Exi Min Mat Sto Fac Fac Low Low Dat Pro Fac Upp Upp War Pro Fac Res Res Acc Damage Taken 3809 | . 413 52 . . . 42 289 513 . . 12 167 . 26 19 110 . 36 735 166 406 . 823 Core 1054 | . 17 35 . . . 29 52 238 . . . 32 . . . 35 . . 307 26 91 . 192 Absorbed by Shields 277 | . . . . . . . . . . . . . . . . . . . . . . . 277 Redirected to Shielding 38 | . . . . . . . . . . . 3 18 . . 6 11 . . . . . . . Core Remaining (%) 87 | 100 . 79 . . . 92 . 47 100 . . . . 96 . . . . 65 97 93 100 88 Volleys Fired 78 | . 25 3 . . . . 4 24 5 2 . . . . 1 . . . 3 . 1 1 9 Largest 2 | . 2 2 . . . . 2 1 2 1 . . . . 1 . . . 1 . 1 1 1 Hottest 124 | . 80 80 . . . . 60 60 124 48 . . . . . . . . . . . 65 65 Shots Fired 110 | . 50 6 . . . . 7 24 6 2 . . . . 1 . . . 3 . 1 1 9 Gun 60 | . 49 3 . . . . . 7 1 . . . . . . . . . . . . . . Cannon 38 | . 1 3 . . . . . 17 5 2 . . . . . . . . . . . 1 9 Launcher 7 | . . . . . . . 7 . . . . . . . . . . . . . . . . Special 5 | . . . . . . . . . . . . . . . 1 . . . 3 . 1 . . Kinetic 62 | . 25 3 . . . . . 17 5 2 . . . . . . . . . . . 1 9 Thermal 5 | . 1 3 . . . . . . 1 . . . . . . . . . . . . . . Explosive 7 | . . . . . . . 7 . . . . . . . . . . . . . . . . Electromagnetic 31 | . 24 . . . . . . 7 . . . . . . . . . . . . . . . Robot Hit Streak 12 | . 12 4 . . . . . 10 . . . . . . 3 . . . 6 . . . . Robot Miss Streak 2 | . 2 . . . . . . 1 . . . . . . . . . . . . 1 . . Penetration Max . | . . . . . . . . . . . . . . . . . . . . . . . . Secondary Targets 1 | . 1 . . . . . . . . . . . . . . . . . . . . . . Max Gunslinging Chain 1 | . 1 . . . . . . . . . . . . . . . . . . . . . . Shots Hit Robots 62 | . 40 3 . . . . . 13 . . . . . . 2 . . . 4 . . . . Core Hits 29 | . 14 3 . . . . 5 5 . . . . . . 1 . . . 1 . . . . Critical Kills . | . . . . . . . . . . . . . . . . . . . . . . . . Critical Parts Destroyed . | . . . . . . . . . . . . . . . . . . . . . . . . Critical Strikes . | . . . . . . . . . . . . . . . . . . . . . . . . Melee Attacks 19 | . . . . . . . 1 . . . . . . . 14 . . . 1 3 . . . Impact . | . . . . . . . . . . . . . . . . . . . . . . . . Slashing 18 | . . . . . . . 1 . . . . . . . 13 . . . 1 3 . . . Piercing 1 | . . . . . . . . . . . . . . . 1 . . . . . . . . Sneak Attacks . | . . . . . . . . . . . . . . . . . . . . . . . . Combat Hostiles . | . . . . . . . . . . . . . . . . . . . . . . . . Follow-up Attacks . | . . . . . . . . . . . . . . . . . . . . . . . . Damage Inflicted 1407 | . 616 53 . . . . 302 342 . . . . . . 52 . . . 42 . . . . Guns 555 | . 421 . . . . . . 134 . . . . . . . . . . . . . . . Cannons 230 | . . 53 . . . . . 177 . . . . . . . . . . . . . . . Explosions 528 | . 195 . . . . . 302 31 . . . . . . . . . . . . . . . Melee 94 | . . . . . . . . . . . . . . . 52 . . . 42 . . . . Ramming . | . . . . . . . . . . . . . . . . . . . . . . . . Kinetic 306 | . 129 . . . . . . 177 . . . . . . . . . . . . . . . Thermal 342 | . 195 53 . . . . 63 31 . . . . . . . . . . . . . . . Explosive 239 | . . . . . . . 239 . . . . . . . . . . . . . . . . Electromagnetic 426 | . 292 . . . . . . 134 . . . . . . . . . . . . . . . Impact . | . . . . . . . . . . . . . . . . . . . . . . . . Slashing 94 | . . . . . . . . . . . . . . . 52 . . . 42 . . . . Piercing . | . . . . . . . . . . . . . . . . . . . . . . . . Highest Corruption 1 | . . . . . . . . . . . . . . . . . . . . . . . 1 Average Corruption 1 | . . . . . . . . . . . . . . . . . . . . . . . 1 Corruption Purged . | . . . . . . . . . . . . . . . . . . . . . . . . Corruption Blocked . | . . . . . . . . . . . . . . . . . . . . . . . . Overload Shots . | . . . . . . . . . . . . . . . . . . . . . . . . Overflow Damage . | . . . . . . . . . . . . . . . . . . . . . . . . Projectiles . | . . . . . . . . . . . . . . . . . . . . . . . . Explosions . | . . . . . . . . . . . . . . . . . . . . . . . . Melee . | . . . . . . . . . . . . . . . . . . . . . . . . Knockbacks . | . . . . . . . . . . . . . . . . . . . . . . . . Impact . | . . . . . . . . . . . . . . . . . . . . . . . . Kinetic . | . . . . . . . . . . . . . . . . . . . . . . . . Secondary . | . . . . . . . . . . . . . . . . . . . . . . . . Self-Inflicted Damage 136 | . 87 . . . . . 30 19 . . . . . . . . . . . . . . . Shots 5 | . 3 . . . . . 1 1 . . . . . . . . . . . . . . . Rammed . | . . . . . . . . . . . . . . . . . . . . . . . . Targets Rammed . | . . . . . . . . . . . . . . . . . . . . . . . . Kicked . | . . . . . . . . . . . . . . . . . . . . . . . . Crushed . | . . . . . . . . . . . . . . . . . . . . . . . . Highest Temperature 184 | . 184 80 . . . 1 21 162 62 5 . 23 . . 5 15 . 9 1 . . 16 22 Average Temperature 53 | . 85 43 . . . 1 9 65 18 5 . 13 . . 3 8 . 7 1 . . 14 10 Received Heat Transfer 732 | . 195 . . . . 27 90 162 . . . 66 . . 9 36 . 18 36 12 54 . 27 Siege Activations . | . . . . . . . . . . . . . . . . . . . . . . . . Robots Corrupted . | . . . . . . . . . . . . . . . . . . . . . . . . Combat Hostiles . | . . . . . . . . . . . . . . . . . . . . . . . . Parts Fried 4 | . 4 . . . . . . . . . . . . . . . . . . . . . . Impact Corruptions . | . . . . . . . . . . . . . . . . . . . . . . . . Robots Melted . | . . . . . . . . . . . . . . . . . . . . . . . . Combat Hostiles . | . . . . . . . . . . . . . . . . . . . . . . . . Parts Melted . | . . . . . . . . . . . . . . . . . . . . . . . . Heat Transferred 411 | . 200 111 . . . . 50 50 . . . . . . . . . . . . . . . Parts Sabotaged . | . . . . . . . . . . . . . . . . . . . . . . . . Parts Stolen . | . . . . . . . . . . . . . . . . . . . . . . . . Parts Stripped . | . . . . . . . . . . . . . . . . . . . . . . . . Power Chain Reactions 4 | . 3 . . . . . . 1 . . . . . . . . . . . . . . . Missiles Intercepted . | . . . . . . . . . . . . . . . . . . . . . . . . Alert | -11 -10 -10 -9 -9 -9 -8 -8 -8 -7 -6 -6 -6 -6 -5 -5 -5 -5 -5 -4 -4 -3 -2 -1 ------- Run | Scr Mat Min Mat Min Exi Min Mat Sto Fac Fac Low Low Dat Pro Fac Upp Upp War Pro Fac Res Res Acc Peak Influence 710 | . 177 139 104 40 . 15 172 710 353 195 . . . . 147 . . . . 259 130 123 324 Initial 322 | . . 69 53 40 . . 5 55 322 121 . . . . 70 . . . . 212 130 16 73 Average 118 | . 107 135 92 40 . . 52 305 287 159 . . . . 58 . . . . 228 54 67 160 Maximum Alert Level 3 | . . . . . . . . 3 1 . . . . . . . . . . 1 . . 1 Low Security (%) 82 | . 100 100 100 100 . 100 100 43 . 100 . . . . 100 . . . . 1 100 100 78 Level 1 14 | . . . . . . . . 21 100 . . . . . . . . . . 98 . . 21 Level 2 2 | . . . . . . . . 33 . . . . . . . . . . . . . . . Level 3 . | . . . . . . . . 2 . . . . . . . . . . . . . . . Level 4 . | . . . . . . . . . . . . . . . . . . . . . . . . Level 5 . | . . . . . . . . . . . . . . . . . . . . . . . . High Security . | . . . . . . . . . . . . . . . . . . . . . . . . Max Security . | . . . . . . . . . . . . . . . . . . . . . . . . Squads Dispatched 18 | . . . 1 . . . 3 4 . . . 1 . . 2 . . . 1 . . 3 3 Investigation 6 | . . . . . . . 2 2 . . . . . . 2 . . . . . . . . Extermination 1 | . . . . . . . . . . . . . . . . . . . . . . . 1 Reinforcement 7 | . . . 1 . . . 1 . . . . . . . . . . . . . . 3 2 Assault 4 | . . . . . . . . 2 . . . 1 . . . . . . 1 . . . . Garrison . | . . . . . . . . . . . . . . . . . . . . . . . . Intercept . | . . . . . . . . . . . . . . . . . . . . . . . . Searches Triggered . | . . . . . . . . . . . . . . . . . . . . . . . . Data Miner Redirects 2 | . . . . . . . . . . . . . . . 2 . . . . . . . . Construction Impeded . | . . . . . . . . . . . . . . . . . . . . . . . . Haulers Reinforced 1 | . . . . . . . . . . . . . . . . . . . . . . 1 . Active Scanning Responses . | . . . . . . . . . . . . . . . . . . . . . . . . Cargo Convoy Interrupts . | . . . . . . . . . . . . . . . . . . . . . . . . Stealth | -11 -10 -10 -9 -9 -9 -8 -8 -8 -7 -6 -6 -6 -6 -5 -5 -5 -5 -5 -4 -4 -3 -2 -1 --------- Run | Scr Mat Min Mat Min Exi Min Mat Sto Fac Fac Low Low Dat Pro Fac Upp Upp War Pro Fac Res Res Acc Distress Signals 10 | . . . . . . . 1 2 . . . . . . . . . . . 1 1 5 . Communications Jammed . | . . . . . . . . . . . . . . . . . . . . . . . . Distress Signals . | . . . . . . . . . . . . . . . . . . . . . . . . Times Spotted 216 | . 6 2 1 . . 4 19 44 2 2 3 9 . 6 8 12 . 7 42 3 8 17 21 Peak Tracking Total 18 | . 4 2 1 . . 3 16 14 1 1 4 12 . 3 4 7 . 7 18 2 3 12 13 Tactical Retreats 33 | . . . . . . 1 1 8 . . 1 2 . . 1 4 . . 5 1 2 3 4 Traps | -11 -10 -10 -9 -9 -9 -8 -8 -8 -7 -6 -6 -6 -6 -5 -5 -5 -5 -5 -4 -4 -3 -2 -1 ------- Run | Scr Mat Min Mat Min Exi Min Mat Sto Fac Fac Low Low Dat Pro Fac Upp Upp War Pro Fac Res Res Acc Traps Triggered 4 | . 2 . . . . . 1 . . . . . . . 1 . . . . . . . . Indirectly . | . . . . . . . . . . . . . . . . . . . . . . . . Trap Hack Attempts . | . . . . . . . . . . . . . . . . . . . . . . . . Triggered . | . . . . . . . . . . . . . . . . . . . . . . . . Disarmed . | . . . . . . . . . . . . . . . . . . . . . . . . Reprogrammed . | . . . . . . . . . . . . . . . . . . . . . . . . Reused . | . . . . . . . . . . . . . . . . . . . . . . . . Traps Extracted . | . . . . . . . . . . . . . . . . . . . . . . . . Installed . | . . . . . . . . . . . . . . . . . . . . . . . . Triggered 8 | . . . . . . . . . . . . . . . . 1 . 6 1 . . . . Machines | -11 -10 -10 -9 -9 -9 -8 -8 -8 -7 -6 -6 -6 -6 -5 -5 -5 -5 -5 -4 -4 -3 -2 -1 ---------- Run | Scr Mat Min Mat Min Exi Min Mat Sto Fac Fac Low Low Dat Pro Fac Upp Upp War Pro Fac Res Res Acc Machines Disabled 7 | . . . . . . . 2 5 . . . . . . . . . . . . . . . Max in Single Turn 3 | . . . . . . . 2 3 . . . . . . . . . . . . . . . Garrison Access 7 | . . . . . . . . 1 . 1 . . . . 2 . . . . 1 2 . . Machines Sabotaged 2 | . . . . . . . . 2 . . . . . . . . . . . . . . . Garrisons Compromised . | . . . . . . . . . . . . . . . . . . . . . . . . Overloaded Fab Kills . | . . . . . . . . . . . . . . . . . . . . . . . . Hacking | -11 -10 -10 -9 -9 -9 -8 -8 -8 -7 -6 -6 -6 -6 -5 -5 -5 -5 -5 -4 -4 -3 -2 -1 --------- Run | Scr Mat Min Mat Min Exi Min Mat Sto Fac Fac Low Low Dat Pro Fac Upp Upp War Pro Fac Res Res Acc Machines Accessed 71 | . 1 . 2 . 1 . 5 9 3 7 . . 4 . 9 1 . 12 . 4 7 2 4 Terminals 39 | . 1 . 2 . . . 4 8 3 4 . . . . 5 . . . . 2 4 2 4 Fabricators 2 | . . . . . . . . . . 1 . . . . . . . . . . 1 . . Repair Stations 1 | . . . . . . . . . . . . . . . 1 . . . . . . . . Recycling Units 3 | . . . . . . . 1 . . 1 . . . . 1 . . . . . . . . Scanalyzers 1 | . . . . . . . . . . . . . . . . . . . . 1 . . . Garrison Access 7 | . . . . . . . . 1 . 1 . . . . 2 . . . . 1 2 . . Total Hacks 190 | . 3 . 9 . 1 . 13 15 7 17 . . 31 . 18 1 . 22 . 14 25 9 5 Successful 130 | . 2 . 3 . 1 . 3 9 7 6 . . 31 . 6 1 . 22 . 12 17 8 2 Failed 60 | . 1 . 6 . . . 10 6 . 11 . . . . 12 . . . . 2 8 1 3 Catastrophic 7 | . . . . . . . 1 . . 2 . . . . 2 . . . . . 1 . 1 Database Lockouts . | . . . . . . . . . . . . . . . . . . . . . . . . Manual 79 | . 1 . 3 . 1 . 11 3 6 10 . . . . 9 . . 1 . 12 14 4 4 Terminals 110 | . 3 . 9 . . . 8 14 7 12 . . . . 10 . . . . 12 21 9 5 Fabricators 3 | . . . . . . . . . . 2 . . . . . . . . . . 1 . . Repair Stations 3 | . . . . . . . . . . . . . . . 3 . . . . . . . . Recycling Units 10 | . . . . . . . 5 . . 2 . . . . 3 . . . . . . . . Scanalyzers 1 | . . . . . . . . . . . . . . . . . . . . 1 . . . Garrison Access 8 | . . . . . . . . 1 . 1 . . . . 2 . . . . 1 3 . . Terminal Hacks 102 | . 2 . 2 . 1 . 2 5 3 1 . . 31 . 2 1 . 22 . 7 13 8 2 Record 31 | . . . . . . . . . . . . . 11 . . . . 20 . . . . . Part Schematic 10 | . . . . . . . . . . . . . 10 . . . . . . . . . . Robot Schematic 7 | . . . . . . . . . . . . . 7 . . . . . . . . . . Prototype ID Bank 4 | . . . . . . . . . . . . . 3 . . . . . . . 1 . . Open Door 8 | . . . . . . . . 3 . . . . . . 1 1 . 2 . . . . 1 Open DSF 1 | . . . . . . . . . . . . . . . 1 . . . . . . . . Level Access Points 4 | . . . . . . . . . . . . . . . . . . . . 1 1 1 1 Branch Access Points 3 | . . . 1 . . . . . 1 . . . . . . . . . . 1 . . . Emergency Access Points 3 | . . . . . . . . . . . . . . . . . . . . 1 1 1 . Terminal Index 1 | . . . . . . . . . . . . . . . . . . . . . 1 . . Repair Station Index 1 | . . . . . . . . . . . . . . . . . . . . . 1 . . Unreport Threat 4 | . . . . . . . . . 1 . . . . . . . . . . . 2 1 . Locate Traps 4 | . 1 . . . . . . . . . . . . . . . . . . 1 2 . . Dispatch Records 1 | . . . . . . . . . . . . . . . . . . . . . . 1 . Recall Reinforcements 1 | . . . . . . . . . . . . . . . . . . . . . . 1 . Hauler Manifests 1 | . . . . . . . . 1 . . . . . . . . . . . . . . . Registered Components 1 | . . . . . . . . . . . . . . . . . . . . 1 . . . Registered Prototypes 2 | . . . . . . . . . . . . . . . . . . . . 1 1 . . Zone Layout 14 | . 1 . 1 . . . 2 1 1 1 . . . . . . . . . 1 3 3 . EX-Prototype ID Bank 1 | . . . . . 1 . . . . . . . . . . . . . . . . . . Fabricator Hacks 2 | . . . . . . . . . . 1 . . . . . . . . . . 1 . . Build 2 | . . . . . . . . . . 1 . . . . . . . . . . 1 . . Repair Station Hacks 1 | . . . . . . . . . . . . . . . 1 . . . . . . . . Scan Component 1 | . . . . . . . . . . . . . . . 1 . . . . . . . . Recycling Unit Hacks . | . . . . . . . . . . . . . . . . . . . . . . . . Scanalyzer 1 | . . . . . . . . . . . . . . . . . . . . 1 . . . Insert Component 1 | . . . . . . . . . . . . . . . . . . . . 1 . . . Garrison Access Hacks 7 | . . . . . . . . 1 . 1 . . . . 2 . . . . 1 2 . . Seal Access 7 | . . . . . . . . 1 . 1 . . . . 2 . . . . 1 2 . . Unauthorized Hacks 17 | . . . 1 . . . 1 3 4 3 . . . . 1 . . . . 3 1 . . Terminals 17 | . . . 1 . . . 1 3 4 3 . . . . 1 . . . . 3 1 . . Track 3 | . . . . . . . . . 1 1 . . . . . . . . . 1 . . . Assimilate 6 | . . . 1 . . . . 1 1 . . . . . 1 . . . . 1 1 . . Botnet 5 | . . . . . . . 1 . 1 2 . . . . . . . . . 1 . . . Detonate 1 | . . . . . . . . . 1 . . . . . . . . . . . . . . Sabotage 2 | . . . . . . . . 2 . . . . . . . . . . . . . . . Fabricators . | . . . . . . . . . . . . . . . . . . . . . . . . Repair Stations . | . . . . . . . . . . . . . . . . . . . . . . . . Recycling Units . | . . . . . . . . . . . . . . . . . . . . . . . . Scanalyzers . | . . . . . . . . . . . . . . . . . . . . . . . . Garrison Access . | . . . . . . . . . . . . . . . . . . . . . . . . Data Cores Recovered . | . . . . . . . . . . . . . . . . . . . . . . . . Used . | . . . . . . . . . . . . . . . . . . . . . . . . Hacking Detections 37 | . 1 . 1 . . . 4 4 2 6 . . . . 6 . . . . 3 5 2 3 Full Trace Events 3 | . . . . . . . 1 . . . . . . . 2 . . . . . . . . Feedback Events . | . . . . . . . . . . . . . . . . . . . . . . . . Feedback Blocked . | . . . . . . . . . . . . . . . . . . . . . . . . Robot Schematics Acquired 7 | . . . . . . . . . . . . . 7 . . . . . . . . . . Robots Built 2 | . . . . . . . . . . . . . . . . . . . . . 2 . . Authchips . | . . . . . . . . . . . . . . . . . . . . . . . . Time 62 | . . . . . . . . . . . . . . . . . . . . . 62 . . Total Robot Build Rating 14 | . . . . . . . . . . . . . . . . . . . . . 14 . . Part Schematics Acquired 10 | . . . . . . . . . . . . . 10 . . . . . . . . . . Parts Built 2 | . . . . . . . . . . 2 . . . . . . . . . . . . . Authchips . | . . . . . . . . . . . . . . . . . . . . . . . . Time 117 | . . . . . . . . . . 117 . . . . . . . . . . . . . Total Part Build Rating 14 | . . . . . . . . . . 14 . . . . . . . . . . . . . Parts Repaired . | . . . . . . . . . . . . . . . . . . . . . . . . Time . | . . . . . . . . . . . . . . . . . . . . . . . . Parts Recycled . | . . . . . . . . . . . . . . . . . . . . . . . . Recycled Matter . | . . . . . . . . . . . . . . . . . . . . . . . . Retrieved Matter . | . . . . . . . . . . . . . . . . . . . . . . . . Retrieved Components . | . . . . . . . . . . . . . . . . . . . . . . . . Parts Scanalyzed . | . . . . . . . . . . . . . . . . . . . . . . . . Part Schematics Acquired . | . . . . . . . . . . . . . . . . . . . . . . . . Parts Damaged . | . . . . . . . . . . . . . . . . . . . . . . . . Bothacking | -11 -10 -10 -9 -9 -9 -8 -8 -8 -7 -6 -6 -6 -6 -5 -5 -5 -5 -5 -4 -4 -3 -2 -1 ------------ Run | Scr Mat Min Mat Min Exi Min Mat Sto Fac Fac Low Low Dat Pro Fac Upp Upp War Pro Fac Res Res Acc Used RIF Installer . | . . . . . . . . . . . . . . . . . . . . . . . . Robots Hacked . | . . . . . . . . . . . . . . . . . . . . . . . . Non-combat . | . . . . . . . . . . . . . . . . . . . . . . . . Combat . | . . . . . . . . . . . . . . . . . . . . . . . . Robot Hacks Applied . | . . . . . . . . . . . . . . . . . . . . . . . . Relay Couplers Released . | . . . . . . . . . . . . . . . . . . . . . . . . Fabnet Peak Effective % . | . . . . . . . . . . . . . . . . . . . . . . . . Robots Rewired . | . . . . . . . . . . . . . . . . . . . . . . . . Allies Hacked . | . . . . . . . . . . . . . . . . . . . . . . . . Hacks Repelled . | . . . . . . . . . . . . . . . . . . . . . . . . Allies | -11 -10 -10 -9 -9 -9 -8 -8 -8 -7 -6 -6 -6 -6 -5 -5 -5 -5 -5 -4 -4 -3 -2 -1 -------- Run | Scr Mat Min Mat Min Exi Min Mat Sto Fac Fac Low Low Dat Pro Fac Upp Upp War Pro Fac Res Res Acc Total Allies 14 | . . . 1 . . . . 3 1 . . . . 1 1 . . . 3 1 3 . . Largest Group 3 | . . . 1 1 1 1 . 2 1 1 . . . 1 1 . . . 3 1 2 . . Highest-Rated Group 112 | . . . 10 10 10 10 . 62 26 26 . . . 96 26 . . . 36 45 112 . . Highest-Rated Ally 96 | . . . 10 10 10 10 . 31 26 26 . . . 96 26 . . . 12 45 56 . . Total Orders . | . . . . . . . . . . . . . . . . . . . . . . . . Ally Attacks 49 | . . . . . . . . . . . . . . 9 . . . . 34 . 6 . . Total Damage 923 | . . . . . . . . . . . . . . 369 . . . . 374 . 180 . . Kills 7 | . . . . . . . . . . . . . . 4 . . . . 2 . 1 . . Allies Corrupted 2 | . . . . . . . . 1 . 1 . . . . . . . . . . . . . Allies Melted 1 | . . . . . . . . . . . . . . . . . . . . . 1 . . Field Lobotomies 4 | . . . . . . . . . . . . . . . 1 . . . 3 . . . . Intel | -11 -10 -10 -9 -9 -9 -8 -8 -8 -7 -6 -6 -6 -6 -5 -5 -5 -5 -5 -4 -4 -3 -2 -1 ------- Run | Scr Mat Min Mat Min Exi Min Mat Sto Fac Fac Low Low Dat Pro Fac Upp Upp War Pro Fac Res Res Acc Robot Analysis Total . | . . . . . . . . . . . . . . . . . . . . . . . . Derelict Logs Recovered 6 | . . . . . . . . . . . 1 . . 2 . 2 1 . . . . . . Drone Launches 16 | . . . . . . . . 16 . . . . . . . . . . . . . . . Drone Recoveries 2 | . . . . . . . . 2 . . . . . . . . . . . . . . . Exploration | -11 -10 -10 -9 -9 -9 -8 -8 -8 -7 -6 -6 -6 -6 -5 -5 -5 -5 -5 -4 -4 -3 -2 -1 ------------- Run | Scr Mat Min Mat Min Exi Min Mat Sto Fac Fac Low Low Dat Pro Fac Upp Upp War Pro Fac Res Res Acc Turns Passed 4919 | . 286 59 76 26 102 189 247 313 166 240 78 86 23 157 727 202 57 289 175 263 577 282 299 Spaces Moved 10526 | 1 166 67 156 42 213 261 287 683 364 454 275 278 84 452 1502 649 204 952 438 566 844 683 905 Core 279 | . . . . . . . . . . . . . . . . . . . . 279 . . . Treads . | . . . . . . . . . . . . . . . . . . . . . . . . Legs 42 | 1 41 . . . . . . . . . . . . . . . . . . . . . . Wheels 138 | . 125 13 . . . . . . . . . . . . . . . . . . . . . Hover 718 | . . . . . . . . . . . . . . . . . . . . 21 697 . . Flight 9349 | . . 54 156 42 213 261 287 683 364 454 275 278 84 452 1502 649 204 952 438 266 147 683 905 Fastest Speed 26 | 120 100 37 32 32 32 32 29 27 27 27 27 27 27 27 27 28 28 28 28 30 35 33 26 Average Speed 33 | 120 114 52 33 32 32 32 29 28 28 27 27 27 27 27 28 28 28 28 29 42 55 33 28 Slowest Speed 145 | 120 145 115 34 32 32 32 34 105 29 27 27 29 27 27 31 28 28 28 114 80 80 35 33 Overloaded Moves . | . . . . . . . . . . . . . . . . . . . . . . . . Propulsion Burnouts . | . . . . . . . . . . . . . . . . . . . . . . . . Robots Hopped 102 | . . 2 . . . 7 11 24 3 4 . 2 . . 8 2 . . 5 4 3 6 21 Cave-ins Triggered . | . . . . . . . . . . . . . . . . . . . . . . . . Exploration Rate (%) 42 | 1 35 25 18 16 61 51 25 91 13 20 55 62 75 73 29 79 50 93 65 16 17 20 26 Regions Visited 23 Branch Regions 13 Pre-discovered Areas 4 | . . . . 1 . . . . . . 1 . 1 1 . . . . . . . . . Known Exits Taken 9 | . . . 1 . . . . . . . . . . . 1 1 1 1 1 1 1 1 . Unknown Exits Taken 14 | 1 1 1 . 1 1 1 1 1 1 1 1 1 1 1 . . . . . . . . . Scrap Searched 14 | . . . . . . 1 . . . . 4 2 . 2 . 3 . . 2 . . . . Spaces Dug 46 | . . . . . . . 15 4 2 1 . . . . 13 . . . . 3 . 1 7 Terrain Destroyed 102 | . 12 . . . . . 57 6 2 1 . . . . 13 . . . . 3 . 1 7 Melee 16 | . . . . . . . . . . . . . . . 13 . . . . 3 . . . Projectile 15 | . . . . . . . . 4 2 1 . . . . . . . . . . . 1 7 AOE 71 | . 12 . . . . . 57 2 . . . . . . . . . . . . . . . Terrain Rammed . | . . . . . . . . . . . . . . . . . . . . . . . . Walls Destroyed . | . . . . . . . . . . . . . . . . . . . . . . . . Machines Disabled . | . . . . . . . . . . . . . . . . . . . . . . . . Actions | -11 -10 -10 -9 -9 -9 -8 -8 -8 -7 -6 -6 -6 -6 -5 -5 -5 -5 -5 -4 -4 -3 -2 -1 --------- Run | Scr Mat Min Mat Min Exi Min Mat Sto Fac Fac Low Low Dat Pro Fac Upp Upp War Pro Fac Res Res Acc Total 11678 | . 213 84 178 53 246 359 429 752 413 566 278 284 83 486 1771 666 203 977 469 582 945 724 917 Wait 882 | . . . 14 12 32 104 139 30 36 105 . . . 32 227 17 . 2 23 4 72 32 1 Move 10310 | . 165 62 155 41 212 248 265 641 357 446 274 273 83 451 1485 644 203 951 428 557 837 670 862 Hop 90 | . . 2 . . . 5 10 17 3 3 . 2 . . 8 2 . . 4 4 3 6 21 Pick Up 60 | . 9 7 3 . 1 1 1 6 4 3 2 1 . 2 3 1 . 7 . 1 4 3 1 Fast Attach 65 | . 6 . 1 . . . 3 7 2 . . 3 . . 11 1 . 4 2 4 8 6 7 Attach 45 | . 3 . 4 . . . 2 8 1 1 1 2 . . 4 . . 1 2 1 6 2 7 Detach 17 | . . 1 . . . . . 1 . 1 . 1 . . 3 . . . 2 . 3 1 4 Swap 22 | . 2 4 1 . . . 1 4 3 1 . . . . 2 . . . 2 1 1 . . Drop 83 | . 3 5 . . 1 1 3 7 2 4 1 2 . 1 13 1 . 12 2 7 10 3 5 Fire 78 | . 25 3 . . . . 4 24 5 2 . . . . 1 . . . 3 . 1 1 9 Melee 19 | . . . . . . . 1 . . . . . . . 14 . . . 1 3 . . . Ram . | . . . . . . . . . . . . . . . . . . . . . . . . Kick . | . . . . . . . . . . . . . . . . . . . . . . . . Crush . | . . . . . . . . . . . . . . . . . . . . . . . . Escape Stasis . | . . . . . . . . . . . . . . . . . . . . . . . . Rewire . | . . . . . . . . . . . . . . . . . . . . . . . . Trap . | . . . . . . . . . . . . . . . . . . . . . . . . Miscellaneous 7 | . . . . . . . . 7 . . . . . . . . . . . . . . . Route ------- -11/Scrapyard -10/Materials (discovered 2 exits: *Mat / [*Min]) -10/Mines -9/Materials (discovered 2 exits: *Min x2) -9/Mines -9/Exiles -8/Mines -8/Materials -8/Storage -7/Factory (discovered 3 exits: *Fac / Low x2) -6/Factory -6/Lower Caves -6/Lower Caves (discovered 2 exits: *Fac / *Dat) -6/Data Miner -5/Proximity Caves -5/Factory (discovered 2 exits: *Upp / *Ext) -5/Upper Caves -5/Upper Caves -5/Warlord -4/Proximity Caves -4/Factory (discovered 6 exits: *Res x4 / *Upp x2) -3/Research (discovered 4 exits: *Res x3 / [*Qua]) -2/Research (discovered 3 exits: *Acc x3) -1/Access To Epsilon Eridani History --------- Turn | Location | Event 1 | -11/Scrapyard | Discovered new exit (range 0) 1 | -11/Scrapyard | Entered Materials 111 | -10/Materials | Lost 3 parts (1p1n1w) 182 | -10/Materials | Discovered new exit (range 12) 260 | -10/Materials | Discovered new exit (range 12) 287 | -10/Materials | Entered Mines 301 | -10/Mines | Build established: Mutant 345 | -10/Mines | Discovered new exit (range 4) 346 | -10/Mines | Entered Materials 346 | -9/Materials | Evolved 2 slots: Propulsion x1, Utility x1 375 | -9/Materials | Identified exit to Mines 422 | -9/Materials | Entered Mines 422 | -9/Mines | Accompanied by 1 ally 423 | -9/Mines | Learned location of Storage (-8) 439 | -9/Mines | Deemed a non-threat by the Exiles lab entrance 439 | -9/Mines | Discovered new exit (range 5) 448 | -9/Mines | Entered Exiles 448 | -9/Exiles | Accompanied by 1 ally 456 | -9/Exiles | Met 8R-AWN 473 | -9/Exiles | Met EX-HEX 482 | -9/Exiles | Met EX-BIN 486 | -9/Exiles | Aligned with FarCom system 486 | -9/Exiles | Given EX-Vault access code 494 | -9/Exiles | Opened EX-Vault 497 | -9/Exiles | Found Field Lobotomy Kit 504 | -9/Exiles | Warned to stay clear of 0b10 Research branches 513 | -9/Exiles | Met EX-DEC 525 | -9/Exiles | Discovered new exit (range 15) 550 | -9/Exiles | Left Exiles lab with Field Lobotomy Kit 550 | -9/Exiles | Entered Mines 550 | -8/Mines | Accompanied by 1 ally 687 | -8/Mines | Build established: Sprinter 736 | -8/Mines | Discovered new exit (range 11) 739 | -8/Mines | Entered Materials 739 | -8/Materials | Evolved 2 slots: Propulsion x1, Utility x1 982 | -8/Materials | Discovered new exit (range 15) 986 | -8/Materials | Entered Storage 1017 | -8/Storage | Lost 5 parts (1p1n1u2w) 1270 | -8/Storage | Met a pair of Derelict thieves 1291 | -8/Storage | Core integrity fell below 50% 1298 | -8/Storage | Discovered new exit (range 6) 1299 | -8/Storage | Entered Factory 1299 | -7/Factory | Evolved 2 slots: Propulsion x1, Utility x1 1383 | -7/Factory | Identified exit to Lower Caves 1457 | -7/Factory | Discovered new exit (range 3) 1465 | -7/Factory | Entered another Factory area 1465 | -6/Factory | Accompanied by 1 ally 1465 | -6/Factory | Evolved 2 slots: Propulsion x1, Utility x1 1599 | -6/Factory | Fabricated Imp. Linear Gravjet? 1699 | -6/Factory | Spotted B-75 Beast 1704 | -6/Factory | Discovered new exit (range 3) 1705 | -6/Factory | Entered Lower Caves 1729 | -6/Lower Caves | Encountered a Warlord checkpoint 1780 | -6/Lower Caves | Discovered new exit (range 12) 1783 | -6/Lower Caves | Entered another Lower Caves area 1785 | -6/Lower Caves | Discovered new exit (range 10) 1813 | -6/Lower Caves | Attracted the attention of an 0b10 checkpoint 1849 | -6/Lower Caves | Attracted the attention of an 0b10 outpost 1868 | -6/Lower Caves | Discovered new exit (range 5) 1869 | -6/Lower Caves | Entered Data Miner 1869 | -6/Data Miner | Discovered new exit (range 6) 1874 | -6/Data Miner | Met Data Miner 1881 | -6/Data Miner | Learned location of Section 7 (-2) 1881 | -6/Data Miner | Acquired the access code to Warlord's prototype stash 1886 | -6/Data Miner | Received God Mode back door access code from Data Miner 1892 | -6/Data Miner | Entered Proximity Caves 1901 | -5/Proximity Caves | Learned location of Warlord (-5) 1926 | -5/Proximity Caves | Learned location of 1 exit from Factory 1959 | -5/Proximity Caves | Escorted by Enhanced Grunt 2037 | -5/Proximity Caves | Spotted B-75 Beast 2045 | -5/Proximity Caves | Discovered new exit (range 14) 2049 | -5/Proximity Caves | Entered Factory 2049 | -5/Factory | Evolved 2 slots: Utility x2 2050 | -5/Factory | Identified exit to Upper Caves 2182 | -5/Factory | Identified exit to DSF 2229 | -5/Factory | Incoming investigation squad redirected 2425 | -5/Factory | Incoming investigation squad redirected 2469 | -5/Factory | Assimilated O-24 Administrator with FLK Orb 2553 | -5/Factory | Discovered new exit (range 6) 2554 | -5/Factory | Identified exit to Extension 2607 | -5/Factory | Build established: Hacker-Sprinter 2776 | -5/Factory | Entered Upper Caves 2845 | -5/Upper Caves | Spotted B-75 Beast 2924 | -5/Upper Caves | Learned 4 Factory zone layouts 2928 | -5/Upper Caves | Learned 4 Factory zone layouts 2933 | -5/Upper Caves | Encountered a Warlord checkpoint 2977 | -5/Upper Caves | Discovered new exit (range 5) 2978 | -5/Upper Caves | Identified exit to Upper Caves 2978 | -5/Upper Caves | Entered another Upper Caves area 3006 | -5/Upper Caves | Learned Factory terminal intel 3035 | -5/Upper Caves | Discovered new exit (range 5) 3035 | -5/Upper Caves | Identified exit to Warlord 3035 | -5/Upper Caves | Entered Warlord 3070 | -5/Warlord | Opened side exit 3075 | -5/Warlord | Discovered new exit (range 10) 3174 | -5/Warlord | Visited the Vortex Lab 3196 | -5/Warlord | Warlord's base attacked by MAIN.C 3238 | -5/Warlord | Met Warlord 3244 | -5/Warlord | Opened Warlord's prototype stash 3246 | -5/Warlord | Found Prototype Hackware 3246 | -5/Warlord | Identified System Mapper 3254 | -5/Warlord | Found Prototype Processor 3255 | -5/Warlord | Identified Spectral Analyzer 3265 | -5/Warlord | Found Prototype Reactor 3324 | -5/Warlord | Identified exit to Proximity Caves 3324 | -5/Warlord | Entered Proximity Caves 3338 | -4/Proximity Caves | Attracted the attention of an 0b10 outpost 3355 | -4/Proximity Caves | Spotted B-86 Titan 3416 | -4/Proximity Caves | Assimilated S-27 Virus with FLK Orb 3419 | -4/Proximity Caves | Assimilated S-27 Virus with FLK Orb 3422 | -4/Proximity Caves | Assimilated S-27 Virus with FLK Orb 3445 | -4/Proximity Caves | Lost 3 parts (3n) 3485 | -4/Proximity Caves | Attracted the attention of an 0b10 checkpoint 3496 | -4/Proximity Caves | Discovered new exit (range 11) 3499 | -4/Proximity Caves | Identified exit to Factory 3499 | -4/Proximity Caves | Entered Factory 3499 | -4/Factory | Evolved 2 slots: Utility x2 3500 | -4/Factory | Identified exit to Upper Caves 3501 | -4/Factory | Loaded intel: 26 terminal locations 3504 | -4/Factory | Identified exit to Research 3547 | -4/Factory | Spotted B-86 Titan 3613 | -4/Factory | Identified Vortex Chain Reactor 3627 | -4/Factory | Lost 4 parts (3n1w) 3762 | -4/Factory | Entered Research 3762 | -3/Research | Evolved 2 slots: Power x1, Propulsion x1 3781 | -3/Research | Found Prototype Hackware 3866 | -3/Research | Fabricated H-77 Assassin? 3903 | -3/Research | Identified exit to Research 3920 | -3/Research | Build established: Wizard-Scout 4000 | -3/Research | Spotted B-86 Titan 4181 | -3/Research | Discovered new exit (range 18) 4290 | -3/Research | Identified Exp. Hacking Suite 4339 | -3/Research | Entered another Research area 4339 | -2/Research | Warlord forces began assault on 0b10 4339 | -2/Research | Evolved 2 slots: Propulsion x2 4368 | -2/Research | Identified exit to Access 4407 | -2/Research | Met up with Warlord 4449 | -2/Research | Research machine network offline 4480 | -2/Research | Spotted 5L-DKV(L) 4621 | -2/Research | Entered Access 4621 | -1/Access | Evolved 2 slots: Utility x2 4697 | -1/Access | Identified exit to Surface 4746 | -1/Access | Spotted B-99 Colossus 4855 | -1/Access | Spotted B-99 Colossus 4855 | -1/Access | Spotted B-99 Colossus 4920 | *** | Escaped! Last Messages --------------- 04866_ Slug penetrates Wall. 04866_ Penetrated by Slug. 04866_ U-05 Engineer lays Concrete. 04866_ R-10 Processor collects Hardcell Cannon. 04866_ U-05 Engineer lays Concrete. 04867_ Acquired 4 matter. 04867_ U-05 Engineer lays Concrete. 04869_ R-10 Processor collects Mic. Fission Core. 04869_ U-05 Engineer lays Concrete. 04870_ R-10 Processor collects Imp. Hardlight Generator. 04871_ ALERT: Rogue bot located, Programmers report to Access Zone 7H. 04889_ Adv. Force Field destroyed. 04900_ Slug penetrates Wall. 04902_ Nuclear Pulse Array destroyed. 04909_ Vortex Chain Reactor destroyed. 04918_ Connecting with Terminal... >>Open(Door) Sealed Barrier opened. 04918_ The Access Shell folds into the floor. [Achievement: Epsilon Run] Map ----- +----------------------------------------------------+ | #??????# """ # ## #??? | | #??????# # ## ##?? | | #??????# % " ## +?? | | #??????# ! """ ## #?? | | #??????# """ ## +?? | | #??????# ### % " ## #?? | | #??????# #?# ## #?? | | #??######+####### ### BB ## #?? | | #??# ###### BB ## #?? | | #??# #??## BB ### ######## #?? | | #??# #??# BB ##?###?????## ##? | | #### " #??# #??????????# #? | | + """ #??# #??????????# #? | | #### """ #??# #??????????# #? | | ##??# " #??# #??????????# +? | | ????# [ #??# #??????????# #? | | ????# #??# #??????????# #? | | ????# ##?#""""""""""#??????????### ###? | | ????# #?????????????????????????# #??? | | ????# ##?????????????????????????# #??? | | ????# #??#""""""""""#???########?# #??? | | ????######### ###??# #???# * ?# #??? | | ?????????????##????# #???# # #??? | | ???????????????????# #???# " # #??? | | ???????????????????# "" #???# """ + #??? | | ???????????????????# "@ #???# """ # #??? | | ???????????????????# #???# " # #??? | | ???????????????????# #???# ?# #??? | | ???????????????????# #???# ?# #??? | | ??????????????????## c ##??# ??# #??? | | ??????????????????# c #??########## #??? | | ??????????????????##"" ##????# #??? | | ???????????????????#"" #?????# +??? | | ???????????????????#"" #?????# #??? | | ???????????????????#T c #?????# #??? | | ???????????????????#"" #?????# #??? | | ???????????????????#"" #?????# #??? | | ?????????????????###"" ####### #??? | | ?????? * +??? | | ?????? #### #??? | | ????????###########################+#+##??# #??? | | ??????????????????????????????????????????+ ?? | | ??????????????????????????????????????????### | | ????????????????????????????????????????????? | | ????????????????????????????????????????????? | | ????????????????????????????????????????????? | | ????????????????????????????????????????????? | | ????????????????????????????????????????????? | | ?????????????????????????????????????????????##### | | ?????????????????????????????????????????????????? | +----------------------------------------------------+ Best States ------------- Heat Dissipation 52 Energy Generation 55 Energy Capacity 915 Matter Stores 300 Matter Capacity 300 Sight Range 24 Robot Scan Range 16 Terrain Scan Density 210 Additional Mass Support 9 Resistance: KI 25 Resistance: EX 50 Propulsion Shielding 33 Evasion (%) 74 Targeting Accuracy 14 Offensive Hacking 60 Defensive Hacking 32 Item Schematics ----------------- Combat Drone Bay | -6/Data Miner | Free Lgt. Regenerative Plating | -6/Data Miner | Free Cld. Nuclear Pulse Thruster | -6/Data Miner | Free Imp. Energy Well | -6/Data Miner | Free Tri-rail Accelerator | -6/Data Miner | Free Imp. Linear Gravjet | -6/Data Miner | Free Imp. System Guard | -6/Data Miner | Free Point Defense Array | -6/Data Miner | Free Phase Gun | -6/Data Miner | Free Adv. Force Field | -6/Data Miner | Free Robot Schematics ------------------ B-60 Warrior | -6/Data Miner | Free A-15 Conveyor | -6/Data Miner | Free G-50 Soldier | -6/Data Miner | Free B-48 Gladiator | -6/Data Miner | Free M-22 Extractor | -6/Data Miner | Free M-30 Cleanser | -6/Data Miner | Free A-27 Freighter | -6/Data Miner | Free Fabricated ------------ Imp. Linear Gravjet | x2 | -6/Factory | Preloaded H-77 Assassin | x2 | -3/Research | Preloaded Alien Tech Used ----------------- None Achievements -------------- Epsilon Run Reappropriation Challenges ------------ None Game ------ Seed BoreNeutronCompressor Manual? 0 Play Time 02:11:28 Cumulative 109.8 hours Start 2022.04.28 @ 21:28:38 End 2022.04.29 @ 00:25:13 Sessions 1 Manual Loads 0 Difficulty Rogue Special Mode None Game No. 132 Rogue 131 Adventurer 0 Explorer 1 Win Type 0 Total 1 Types 1/0/0/0/0/0/0/0/0 Lore% 56 Gallery% 54 Achievement% 46 Wizard Run 0 Options --------- ASCII 1 Keyboard 0 Movement Vi Keybinds 0 Fullscreen 1 Font 18/SmallcapsGlow Map View 76x50 Tactical HUD 1 Map Filters NONE Filters NONE Steam 1 RUN: 24025e7e-7af1-422c-9f38-7c8bb40621bf